Workbook

Sheet Start
A1: 1

Sheet Tab0
A1: 3
B2: Betriebsdaten
B4: Kostenbelege
B6: Finanzmittel
B8: Verwendungs-nachweis
B10: Auszahlungs-antrag

Sheet Tab1
G1: =G6 -> 0 | H1: =L19 -> 0 | I1: =K20 -> 0 | J1: =K31 -> -112.66 | K1: =L26 -> 900 | L1: =K28 -> 0 | O1: DIN276 | P1: Kostengruppe | Q1: Ber. | R1: Bereichstext | U1: Nr. | V1: Finanzen | X1: Num | Y1: AusGruppen | AA1: Num | AB1: Kreisstellen | AE1: Ausgabenkomp | AH1: keine Angabe
D2: 25 | E2: 29 | F2: Satz | G2: Zahlg | H2: Skonto++ | I2: nichtFF | J2: BruttoFF | K2: MWst | L2: NettoFF | N2: 1 | O2: 100 | P2: Grundstück- | Q2: 1 | R2: Landkauf | U2: 1 | V2: Eigene Mittel | X2: 1 | Y2: Landkauf, Grundstück | AA2: 1 | AB2: Aachen | AC2: VE Düren | AE2: =O2&" " &P2 -> 100 Grundstück- | AG2: Aachen | AH2: VE Düren
D3: 3 | E3: 3 | F3: 19 | G3: MWST%,€ Kopie d. Werts | I3: 55000 | J3: 8781.51 | K3: 46218.49 | L3: =LEFT(J9,1) -> B | N3: 2 | O3: 110 | P3: Grundstückswert- | Q3: 1 | R3: Landkauf | U3: 2 | V3: MWSt-Erstattung | X3: 2 | Y3: Erschließung | AA3: 2 | AB3: Borken | AC3: VE Borken | AE3: =O3&" " &P3 -> 110 Grundstückswert- | AG3: Borken | AH3: VE Borken
D4: 2013 | E4: 2013 | F4: 8.1 | G4: Errechnet | I4: =IF(G6-H6<>0,G6-H6,0) -> 0 | J4: =IF(I4<>0,ROUND((G6-H6)/(100+F3)*F3,2),0) -> 0 | K4: =IF(I4-J4<>0,I4-J4,0) -> 0 | N4: 3 | O4: 120 | P4: Grundstücksnebenkosten- | Q4: 1 | R4: Landkauf | U4: 3 | V4: Erlös Immob-Verkauf | X4: 3 | Y4: Bauwerk / Konstruktion | AA4: 3 | AB4: Coesfeld | AC4: VE Coesfeld | AE4: 120 Grundstücksnebenkosten- | AG4: Coesfeld | AH4: VE Coesfeld
D5: =DATE(D4,D3,D2) -> 2013-03-25 | E5: =DATE(E4,E3,E2) -> 2013-03-29 | N5: 4 | O5: 130 | P5: Freimachen- | Q5: 1 | R5: Landkauf | U5: 4 | V5: Zuschuss and. Förd.-Prog | X5: 4 | Y5: Bauwerk / Techn. Anlagen | AA5: 4 | AB5: Düren | AC5: VE Düren | AE5: 130 Freimachen- | AG5: Düren | AH5: VE Düren
A6: =D22 -> 18 | B6: 4 | C6: 400 | D6: =D5 -> 2013-03-25 | E6: =E5 -> 2013-03-29 | F6: Hohnrath | N6: 5 | O6: 200 | P6: Herrichten und Erschließen | Q6: 2 | R6: Erschließung | U6: 5 | V6: Zuschuss | X6: 5 | Y6: Außenanlagen | AA6: 5 | AB6: Euskirchen | AC6: VE Düren | AE6: 200 Herrichten und Erschließen | AG6: Euskirchen | AH6: VE Düren
A7: Buchung | B7: Beleg | C7: DIN | D7: R-Datum | E7: Z-Datum | F7: Aussteller | G7: Rechn-Betrag | I7: föfä.Betrag | J7: MWSt | K7: Netto | L7: FoeBer | N7: 6 | O7: 210 | P7: Herrichten+ | Q7: 2 | R7: Erschließung | U7: 6 | V7: Zinszuschuss (alt) | X7: 6 | Y7: Ausstattung | AA7: 6 | AB7: Gütersloh | AC7: VE Warendorf | AE7: 210 Herrichten+ | AG7: Gütersloh | AH7: VE Warendorf
F8: Verwendung 2003 | N8: 7 | O8: 220 | P8: Öffentliche Erschließung+ | Q8: 2 | R8: Erschließung | U8: 7 | V8: Z.Erfüllung bes. Anford. | X8: 7 | Y8: Nebenkosten | AA8: 7 | AB8: Heinsberg | AC8: VE Viersen | AE8: 220 Öffentliche Erschließung+ | AG8: Heinsberg | AH8: VE Viersen
B9: ="Betrieb: "& D10 &", "& D11&"; Nr. "&D12 -> Betrieb: von Grünberg, Halahli; Nr. 22233345 | J9: Bes. Anforderungen an Tierhaltung | N9: 8 | O9: 230 | P9: Nichtöffentliche Erschließung+ | Q9: 2 | R9: Erschließung | U9: 8 | V9: Erschließungszuschuss | X9: 8 | Y9: Maschinen / Innenwirtschaft | AA9: 8 | AB9: Herford-Bielefeld | AC9: VE Lübbecke | AE9: 230 Nichtöffentliche Erschließung+ | AG9: Herford-Bielefeld | AH9: VE Lübbecke
B10: Name | D10: von Grünberg | F10: Felix | H10: zu Sp. L | I10: FoeBer | J10: S | K10: Steigerung der Wettbewerbsfähigkeit | N10: 9 | O10: 240 | P10: Ausgleichsabgaben- | Q10: 2 | R10: Erschließung | U10: 9 | V10: Junglandwirtezuschuss | X10: 9 | Y10: Maschinen /Außenwirtschaft | AA10: 9 | AB10: Hochsauerland | AC10: VE Meschede | AE10: 240 Ausgleichsabgaben- | AG10: Hochsauerland | AH10: VE Meschede
B11: Ort | D11: Halahli | F11: 52222 | I11: Förderbereich | J11: B | K11: Bes. Anforderungen an Tierhaltung | N11: 10 | O11: 300 | P11: Bauwerk/Baukonstruktion+ | Q11: 3 | R11: Bauwerk/Konsruktion | U11: 10 | V11: Darlehen | X11: 10 | Y11: Viehzukauf | AA11: 10 | AB11: Höxter | AC11: VE Brakel | AE11: 300 Bauwerk/Baukonstruktion+ | AG11: Höxter | AH11: VE Brakel
B12: B.-Nr. | D12: 22233345 | J12: E | K12: Erschließungskosten | N12: 11 | O12: 400 | P12: Bauwerk/Technische Anlagen+ | Q12: 4 | R12: Bauwerk/Techn.Anlagen | U12: 11 | V12: Kontokorrent | X12: 11 | Y12: Ablösung Verbindlichkeiten | AA12: 11 | AB12: Kleve | AC12: VE Kleve | AE12: 400 Bauwerk/Technische Anlagen+ | AG12: Kleve | AH12: VE Kleve
B13: Option: | D13: 66655665 | E13: 2 | F13: Auswahl der Optionen | J13: N | K13: Nicht förderfähig | N13: 12 | O13: 500 | P13: Außenanlagen | Q13: 5 | R13: Außenanlagen | U13: 12 | V13: sonst. Kredit | X13: 12 | Y13: Finanzierungsnebenkosten | AA13: 12 | AB13: Lippe | AC13: VE Brakel | AE13: 500 Außenanlagen | AG13: Lippe | AH13: VE Brakel
B14: Anschrift: | D14: Hochsitz 4 | N14: 13 | O14: 510 | P14: Geländeflächen- | Q14: 5 | R14: Außenanlagen | X14: 13 | Y14: Sonstige Kosten | AA14: 13 | AB14: Märkischer Kreis/Ennepe-Ruhr | AC14: VE Unna | AE14: 510 Geländeflächen- | AG14: Märkischer Kreis/Ennepe-Ruhr | AH14: VE Unna
B15: Bankverbindg | N15: 14 | O15: 520 | P15: Befestigte Flächen (ohne 521-4)- | Q15: 5 | R15: Außenanlagen | AA15: 14 | AB15: Mettmann | AC15: VE Lindlar | AE15: 520 Befestigte Flächen (ohne 521-4)- | AG15: Mettmann | AH15: VE Lindlar
B16: Buchung in | D16: 1 | F16: Euro | N16: 15 | O16: 521 | P16: Wege ~ | Q16: 5 | R16: Außenanlagen | X16: 1 | Y16: =VLOOKUP(X16,AusGruppen,2,1) -> Landkauf, Grundstück | AA16: 15 | AB16: Minden-Lübbecke | AC16: VE Lübbecke | AE16: 521 Wege ~ | AG16: Minden-Lübbecke | AH16: VE Lübbecke
J17: SKONTO | K17: %-erfasst | L17: € erfasst | N17: 16 | O17: 522 | P17: Straßen ~ | Q17: 5 | R17: Außenanlagen | AA17: 16 | AB17: Münster | AC17: VE Warendorf | AE17: 522 Straßen ~ | AG17: Münster | AH17: VE Warendorf
B18: Belege | D18: 0 | J18: Proz | K18: 0.5 | L18: =ROUND(IF(AND(L19>0,H43>0),K19%*H43,0),2) -> 0 | N18: 17 | O18: 523 | P18: Plätze, Höfe ~ | Q18: 5 | R18: Außenanlagen | AA18: 17 | AB18: Oberbergischer Kreis | AC18: VE Lindlar | AE18: 523 Plätze, Höfe ~ | AG18: Oberbergischer Kreis | AH18: VE Lindlar
B19: Lauf | D19: TRUE | J19: Euro | K19: =ROUND(IF(L19>0,0,K18*G6%),2) -> 0 | L19: 0 | N19: 18 | O19: 524 | P19: Stellplätze+ | Q19: 5 | R19: Außenanlagen | AA19: 18 | AB19: Olpe | AC19: VE Meschede | AE19: 524 Stellplätze+ | AG19: Olpe | AH19: VE Meschede
B20: das_wars | D20: TRUE | J20: nffnetto | K20: 0 | N20: 19 | O20: 530 | P20: Baukonstruktion in Außenanlagen- | Q20: 5 | R20: Außenanlagen | AA20: 19 | AB20: Paderborn | AC20: VE Brakel | AE20: 530 Baukonstruktion in Außenanlagen- | AG20: Paderborn | AH20: VE Brakel
B21: Splitten(1=ja) | D21: 7 | F21: 1= ja; 2=nein | K21: Errechnet | L21: Kopie | N21: 20 | O21: 540 | P21: Technische Anl. in Außenanlagen+ | Q21: 5 | R21: Außenanlagen | AA21: 20 | AB21: Recklinghausen | AC21: VE Coesfeld | AE21: 540 Technische Anl. in Außenanlagen+ | AG21: Recklinghausen | AH21: VE Coesfeld
B22: letzteZeile | D22: 18 | F22: Vor erster Buchung eine 1 eintragen | J22: Skontobetrag | K22: =K19+L19 -> 0 | L22: 0 | N22: 21 | O22: 540 | P22: Einbauten in Außenanlagen- | Q22: 5 | R22: Außenanlagen | AA22: 21 | AB22: Rhein-Erft-Kreis | AC22: VE Köln-Auweiler | AE22: 540 Einbauten in Außenanlagen- | AG22: Rhein-Erft-Kreis | AH22: VE Köln-Auweiler
B23: Ganzer Betrag | D23: 0 | J23: SkontoProz | K23: =IF(L19>0,L18,K18) -> 0.5 | N23: 22 | O23: 550 | P23: Einbauten in Außenanlagen- | Q23: 5 | R23: Außenanlagen | AA23: 22 | AB23: Rheinisch-Bergischer-Kreis | AC23: VE Lindlar | AE23: 550 Einbauten in Außenanlagen- | AG23: Rheinisch-Bergischer-Kreis | AH23: VE Lindlar
B24: Restbetrag | D24: 0 | F24: 10000 | J24: Zahlbetrag | K24: =ROUND(H43-K22,2) -> 0 | L24: 0 | N24: 23 | O24: 590 | P24: Sonstige Maßn. in Außenanlagen- | Q24: 5 | R24: Außenanlagen | AA24: 23 | AB24: Rhein-Kreis Neuss | AC24: VE Köln-Auweiler | AE24: 590 Sonstige Maßn. in Außenanlagen- | AG24: Rhein-Kreis Neuss | AH24: VE Köln-Auweiler
B25: Splitt_erlaubt | D25: 2 | F25: 1= ja; 2=nein | J25: MWST-Betr | K25: =ROUND(F3/(100+F3)*K24,2) -> 0 | L25: 0 | N25: 24 | O25: 600 | P25: Ausstattung und Kunstwerke- | Q25: 6 | R25: Ausstattung | AA25: 24 | AB25: Rhein-Sieg-Kreis | AC25: VE Köln-Auweiler | AE25: 600 Ausstattung und Kunstwerke- | AG25: Rhein-Sieg-Kreis | AH25: VE Köln-Auweiler
B26: zuviel verteilt | D26: 2 | F26: 1= ja; 2=nein | J26: Zahlb-MW | K26: =ROUND(K24-K25,2) -> 0 | L26: 900 | N26: 25 | O26: 700 | P26: Baunebenkosten | Q26: 7 | R26: Nebenkosten | AA26: 25 | AB26: Ruhr-Lippe | AC26: VE Unna | AE26: 700 Baunebenkosten | AG26: Ruhr-Lippe | AH26: VE Unna
B27: KG DIN 276 | F27: =D27 -> 0 | G27: =VLOOKUP(D27,Ausgaben,2) ->  | J27: nff-disko | K27: =ROUND(K20-(K23*K20/100),2) -> 0 | L27: 0 | N27: 26 | O27: 710 | P27: Bauherrenaufgaben+ | Q27: 7 | R27: Nebenkosten | AA27: 26 | AB27: Siegen-Wittgenstein | AC27: VE Meschede | AE27: =O27&" " &P27 -> 710 Bauherrenaufgaben+ | AG27: Siegen-Wittgenstein | AH27: VE Meschede
B28: Beleg | D28: 3 | J28: ffnetto | K28: =ROUND(K26-K27,2) -> 0 | L28: 0 | N28: 27 | O28: 720 | P28: Vorbereitung der Objektplanung+ | Q28: 7 | R28: Nebenkosten | AA28: 27 | AB28: Soest | AC28: VE Soest | AE28: 720 Vorbereitung der Objektplanung+ | AG28: Soest | AH28: VE Soest
B29: Art der Mittel | D29: 0 | E29: =D29+1 -> 1 | G29: =VLOOKUP(E29,'Tab1'!$U$2:$V$13,2) -> Eigene Mittel | N29: 28 | O29: 730 | P29: Architekten-/Ingenieurleistungen+ | Q29: 7 | R29: Nebenkosten | AA29: 28 | AB29: Steinfurt | AC29: VE Steinfurt | AE29: 730 Architekten-/Ingenieurleistungen+ | AG29: Steinfurt | AH29: VE Steinfurt
B30: Betrag | D30: 0 | J30: Probe | K30: =K28+K27+K25+K22 -> 0 | L30: =RechnBetrag | N30: 29 | O30: 740 | P30: Gutachten und Beratung+ | Q30: 7 | R30: Nebenkosten | AA30: 29 | AB30: Viersen | AC30: VE Viersen | AE30: 740 Gutachten und Beratung+ | AG30: Viersen | AH30: VE Viersen
B31: Zugangsdatum | D31: =F31 -> 2013-02-21 | F31: =DATE(I31,H31,G31) -> 2013-02-21 | G31: 21 | H31: 2 | I31: 2013 | K31: -112.66 | N31: 30 | O31: 750 | P31: Kunst | Q31: 7 | R31: Nebenkosten | AA31: 30 | AB31: Warendorf | AC31: VE Warendorf | AE31: 750 Kunst | AG31: Warendorf | AH31: VE Warendorf
B32: letzteBelegZ | D32: 4 | F32: Vor erster Buchung eine 1 eintragen | N32: 31 | O32: 760 | P32: Finanzierung | Q32: 7 | R32: Nebenkosten | AA32: 31 | AB32: Wesel | AC32: VE Wesel | AE32: 760 Finanzierung | AG32: Wesel | AH32: VE Wesel
B33: nichtmehr | D33: FALSE | L33: QuellDialog | N33: 32 | O33: 770 | P33: Allgemeine Baunebenkosten- | Q33: 7 | R33: Nebenkosten | AE33: 770 Allgemeine Baunebenkosten-
B34: Kostenplan | D34: 19 | E34: 50000 | F34: 7983.19 | G34: 42016.81 | N34: 33 | O34: 771 | P34: Prüfungen, Genehmigg., Abnahmen+ | Q34: 7 | R34: Nebenkosten | AE34: 771 Prüfungen, Genehmigg., Abnahmen+
B35: Gruppe | D35: =VALUE(F35) ->  | E35: 300 | F35: =VLOOKUP(F27,Kontengruppen,3,2) ->  | N35: 34 | O35: 810 | P35: Maschinen Innenwirtschaft | Q35: 8 | R35: Maschinen/Innenw. | AE35: 810 Maschinen Innenwirtschaft
F36: SVERWEIS(F27;Kontengruppen;3;2) | N36: 35 | O36: 820 | P36: Maschinen Außenwirtschaft | Q36: 9 | R36: Maschinen/Außenw. | AE36: 820 Maschinen Außenwirtschaft
A37: KOSTEN | F37: =ROUND(E34*D34/(100+D34),2) -> 7983.19 | G37: =E34-F37 -> 42016.81 | N37: 36 | O37: 830 | P37: lebendes Inventar | Q37: 10 | R37: Vieh | AE37: =O37&" " &P37 -> 830 lebendes Inventar
B38: KGrup | D38: 1 | E38: =VLOOKUP(D38,AusGruppen,2,TRUE) -> Landkauf, Grundstück | G38: 21 | N38: 37 | O38: 840 | P38: Ablösung Verbindlichkeiten | Q38: 11 | R38: Ablösung Verbindlichkeiten | AE38: 840 Ablösung Verbindlichkeiten
N39: 38 | O39: 850 | P39: Finanzierungsnebenkosten | Q39: 12 | R39: Finanzierungsnebenkosten | AE39: 850 Finanzierungsnebenkosten
D40: 2 | E40: Euskirchen | F40: =VLOOKUP(E40,Kreisstellen2,2,TRUE) -> VE Düren | N40: 39 | O40: 990 | P40: Sonstige Kosten | Q40: 13 | R40: Sonstige Kosten | AE40: 990 Sonstige Kosten
A41: Nr AuszAntrag | C41: 1 | D41: 1
A42: Nr. Grundantrag | C42: 1 | H42: nachAbzug | J42: direktabzug | K42: MWSt | P42: 56333
A43: Grundantragsjahr | C43: 2013 | F43: Zahlungsbetrag | H43: 0 | J43: =H43-H44 -> 0 | P43: 112.66
F44: nachträgl.Skonto | H44: =L19 -> 0 | P44: 0
F45: nicht föfä Positionen | H45: 0 | K45: 0 | P45: 56220.34
F46: Sa ff Positionen | H46: =H43-H44-H45-K45 -> 0 | P46: 10681.8646
F47: MWst | H47: 0 | P47: 45538.4754
F48: SA zf Ausgabe | H48: 0 | K48: =H48+H47+H45+H44 -> 0
F50: Probe | H50: =H48+H47+H45+H44+K45 -> 0
F51: maximale nffNettoposition | H51: =H43/(100+F3) -> 0

Sheet Tab2
A1: Buch-Nr. | B1: Beleg | C1: KG | D1: Rechn.-Datum | E1: Zahlungs- Datum | F1: Firma, Aussteller | G1: Verwendungszweck | H1: Zahlung | I1: nicht real. Skonto | J1: nicht ff.Ausgaben incl MWSt | K1: ff. Brutto | L1: MWst anteilig | M1: ff. Netto | N1: Förd-Zweck | O1: Ausz-AntragNr
A2: 1 | B2: 1 | C2: 200 | D2: 20.03.2013 | E2: 21.03.2013 | F2: Hindemit | G2: Verwendung 2000 | H2: 2.500,00 | I2: 25,00 | J2: 0,00 | K2: 2.475,00 | L2: 395,17 | M2: 2.079,83 | N2: E | O2: 1
A3: 2 | B3: 2 | C3: 300 | D3: 21.03.2013 | E3: 21.03.2013 | F3: Hohnrath | G3: Verwendung 2000 | H3: 100.000,00 | I3: 1.000,00 | J3: 5.950,00 | K3: 93.050,00 | L3: 14.856,72 | M3: 78.193,28 | N3: B | O3: 1
A4: 3 | B4: 3 | C4: 300 | D4: 22.03.2013 | E4: 23.04.2013 | F4: Mahrens | G4: Verwendung 2001 | H4: 83.500,00 | I4: 0,00 | J4: 0,00 | K4: 83.500,00 | L4: 13.331,93 | M4: 70.168,07 | N4: B | O4: 1
A5: 16 | B5: 4 | C5: 300 | D5: 25.03.2013 | E5: 29.03.2013 | F5: Hohnrath | G5: Verwendung 2003 | H5: 55.555,00 | I5: 0,00 | J5: 0,00 | K5: 55.555,00 | L5: 8.870,13 | M5: 46.684,87 | N5: B | O5: 1
A6: 4 | B6: 4 | C6: 400 | D6: 25.03.2013 | E6: 29.03.2013 | F6: Kalletal e.G. | G6: Verwendung 2003 | H6: 65.000,00 | I6: 325,00 | J6: 0,00 | K6: 64.675,00 | L6: 10.326,26 | M6: 54.348,74 | N6: B | O6: 1
A7: 17 | B7: 4 | C7: 400 | D7: 25.03.2013 | E7: 29.03.2013 | F7: Hohnrath | G7: Verwendung 2003 | H7: 126.000,00 | I7: 0,00 | J7: 0,00 | K7: 126.000,00 | L7: 20.117,65 | M7: 105.882,35 | N7: B | O7: 1
A8: 5 | B8: 5 | C8: 450 | D8: 20.03.2014 | E8: 21.03.2013 | F8: Hindemit | G8: Verwendung 2005 | H8: 2.500,01 | I8: 25,01 | J8: 0,01 | K8: 2.475,01 | L8: 395,18 | M8: 2.079,84 | N8: E | O8: 1
A9: 6 | B9: 6 | C9: 510 | D9: 21.03.2013 | E9: 21.03.2013 | F9: Hohnrath | G9: Verwendung 2007 | H9: 100.000,01 | I9: 1.000,01 | J9: 5.950,01 | K9: 93.050,01 | L9: 14.856,73 | M9: 78.193,29 | N9: B | O9: 1
A10: 7 | B10: 7 | C10: 570 | D10: 22.03.2014 | E10: 23.04.2014 | F10: Mahrens | G10: Verwendung 2009 | H10: 83.500,01 | I10: 0,00 | J10: 0,00 | K10: 83.500,01 | L10: 13.331,94 | M10: 70.168,08 | N10: B | O10: 1
A11: 8 | B11: 8 | C11: 630 | D11: 25.03.2014 | E11: 29.03.2014 | F11: Kalletal e.G. | G11: Verwendung 2011 | H11: 65.000,01 | I11: 325,01 | J11: 0,00 | K11: 64.675,01 | L11: 10.326,27 | M11: 54.348,75 | N11: B | O11: 1
A12: 13 | B12: 13 | C12: 930 | D12: 20.03.2016 | E12: 21.03.2013 | F12: Hindemit | G12: Verwendung 2021 | H12: 2.500,03 | I12: 25,03 | J12: 0,03 | K12: 2.475,03 | L12: 395,20 | M12: 2.079,86 | N12: E | O12: 1
A13: 9 | B13: 9 | C13: 690 | D13: 20.03.2015 | E13: 21.03.2013 | F13: Hindemit | G13: Verwendung 2013 | H13: 2.500,02 | I13: 25,02 | J13: 0,02 | K13: 2.475,02 | L13: 395,19 | M13: 2.079,85 | N13: E | O13: 2
A14: 10 | B14: 10 | C14: 750 | D14: 21.03.2013 | E14: 21.03.2013 | F14: Hohnrath | G14: Verwendung 2015 | H14: 100.000,02 | I14: 1.000,02 | J14: 5.950,02 | K14: 93.050,02 | L14: 14.856,74 | M14: 78.193,30 | N14: B | O14: 2
A15: 11 | B15: 11 | C15: 810 | D15: 22.03.2015 | E15: 23.04.2015 | F15: Mahrens | G15: Verwendung 2017 | H15: 83.500,02 | I15: 0,00 | J15: 0,00 | K15: 83.500,02 | L15: 13.331,95 | M15: 70.168,09 | N15: B | O15: 2
A16: 12 | B16: 12 | C16: 870 | D16: 25.03.2015 | E16: 29.03.2015 | F16: Kalletal e.G. | G16: Verwendung 2019 | H16: 65.000,02 | I16: 325,02 | J16: 0,00 | K16: 64.675,02 | L16: 10.326,28 | M16: 54.348,76 | N16: B | O16: 2
A17: 15 | B17: 15 | C17: 850 | D17: 22.03.2016 | E17: 23.04.2016 | F17: Mahrens | G17: Verwendung 2025 | H17: 83.500,03 | I17: 0,00 | J17: 0,00 | K17: 83.500,03 | L17: 13.331,96 | M17: 70.168,10 | N17: B | O17: 3
A18: 14 | B18: 14 | C18: 990 | D18: 21.03.2013 | E18: 21.03.2013 | F18: Hohnrath | G18: Verwendung 2023 | H18: 100.000,03 | I18: 1.000,03 | J18: 5.950,03 | K18: 93.050,03 | L18: 14.856,75 | M18: 78.193,31 | N18: B | O18: 3

Sheet Tab3
A1: Betrieb: | D1: =" "&'Tab1'!D10&" in "&'Tab1'!D11 -> von Grünberg in Halahli | H1: =" Betr.-Nr: " &'Tab1'!D12 -> Betr.-Nr: 22233345
A2: Buchung Nr./ Beleg-Nr | B2: Gruppe | E2: Angaben in Euro | K2: Förderzweck | L2: Ausz.-Antrag Nr.
C3: Datum der Rechnung/ der Zahlung | D3: Rechnungsaussteller/ Verwendungszweck | E3: Zahlung | F3: nicht realis. Skonti | H3: förderfähige Ausgaben brutto | I3: MWSt zu Sp.8 | J3: förderfähiger Betrag netto | M3: bei Prüfung aberkannt Bemerkungen
G5: nicht ff. Betrag incl MWSt
A9: 1 | B9: 2 | C9: 3 | D9: 4 | E9: 5 | F9: 6 | G9: 7 | H9: 8 | I9: 9 | J9: 10 | K9: 11 | L9: 12 | M9: 13
A10: 1 | B10: 200 | C10: 20.03.2013 | D10: Hindemit | E10: 2.500,00 | F10: 25,00 | G10: 0,00 | H10: 2.475,00 | I10: 395,17 | J10: 2.079,83 | K10: E | L10: 1
A11: 1 | C11: 21.03.2013 | D11: Verwendung 2000
A12: KG | B12: =B10 -> 200 | C12: 1 Buchungen | D12: =VLOOKUP(B12, Kontengruppen, 2, TRUE) -> Herrichten und Erschließen | E12: 2500 | F12: 25 | G12: 0 | H12: 2475 | I12: 395.17 | J12: 2079.83
A14: 2 | B14: 300 | C14: 21.03.2013 | D14: Hohnrath | E14: 100.000,00 | F14: 1.000,00 | G14: 5.950,00 | H14: 93.050,00 | I14: 14.856,72 | J14: 78.193,28 | K14: B | L14: 1
A15: 2 | C15: 21.03.2013 | D15: Verwendung 2000
A16: 3 | B16: 300 | C16: 22.03.2013 | D16: Mahrens | E16: 83.500,00 | F16: 0,00 | G16: 0,00 | H16: 83.500,00 | I16: 13.331,93 | J16: 70.168,07 | K16: B | L16: 1
A17: 3 | C17: 23.04.2013 | D17: Verwendung 2001
A18: 16 | B18: 300 | C18: 25.03.2013 | D18: Hohnrath | E18: 55.555,00 | F18: 0,00 | G18: 0,00 | H18: 55.555,00 | I18: 8.870,13 | J18: 46.684,87 | K18: B | L18: 1
A19: 4 | C19: 29.03.2013 | D19: Verwendung 2003
A20: KG | B20: =B18 -> 300 | C20: 3 Buchungen | D20: =VLOOKUP(B20, Kontengruppen, 2, TRUE) -> Bauwerk/Baukonstruktion+ | E20: 239055 | F20: 1000 | G20: 5950 | H20: 232105 | I20: 37058.78 | J20: 195046.22
A22: 4 | B22: 400 | C22: 25.03.2013 | D22: Kalletal e.G. | E22: 65.000,00 | F22: 325,00 | G22: 0,00 | H22: 64.675,00 | I22: 10.326,26 | J22: 54.348,74 | K22: B | L22: 1
A23: 4 | C23: 29.03.2013 | D23: Verwendung 2003
A24: 17 | B24: 400 | C24: 25.03.2013 | D24: Hohnrath | E24: 126.000,00 | F24: 0,00 | G24: 0,00 | H24: 126.000,00 | I24: 20.117,65 | J24: 105.882,35 | K24: B | L24: 1
A25: 4 | C25: 29.03.2013 | D25: Verwendung 2003
A26: KG | B26: =B24 -> 400 | C26: 2 Buchungen | D26: =VLOOKUP(B26, Kontengruppen, 2, TRUE) -> Bauwerk/Technische Anlagen+ | E26: 191000 | F26: 325 | G26: 0 | H26: 190675 | I26: 30443.91 | J26: 160231.09
A28: 5 | B28: 450 | C28: 20.03.2014 | D28: Hindemit | E28: 2.500,01 | F28: 25,01 | G28: 0,01 | H28: 2.475,01 | I28: 395,18 | J28: 2.079,84 | K28: E | L28: 1
A29: 5 | C29: 21.03.2013 | D29: Verwendung 2005
A30: KG | B30: =B28 -> 450 | C30: 1 Buchungen | D30: =VLOOKUP(B30, Kontengruppen, 2, TRUE) -> Bauwerk/Technische Anlagen+ | E30: 2500.01 | F30: 25.01 | G30: 0.01 | H30: 2475.01 | I30: 395.18 | J30: 2079.84
A32: 6 | B32: 510 | C32: 21.03.2013 | D32: Hohnrath | E32: 100.000,01 | F32: 1.000,01 | G32: 5.950,01 | H32: 93.050,01 | I32: 14.856,73 | J32: 78.193,29 | K32: B | L32: 1
A33: 6 | C33: 21.03.2013 | D33: Verwendung 2007
A34: KG | B34: =B32 -> 510 | C34: 1 Buchungen | D34: =VLOOKUP(B34, Kontengruppen, 2, TRUE) -> Geländeflächen- | E34: 100000.01 | F34: 1000.01 | G34: 5950.01 | H34: 93050.01 | I34: 14856.73 | J34: 78193.29
A36: 7 | B36: 570 | C36: 22.03.2014 | D36: Mahrens | E36: 83.500,01 | F36: 0,00 | G36: 0,00 | H36: 83.500,01 | I36: 13.331,94 | J36: 70.168,08 | K36: B | L36: 1
A37: 7 | C37: 23.04.2014 | D37: Verwendung 2009
A38: KG | B38: =B36 -> 570 | C38: 1 Buchungen | D38: =VLOOKUP(B38, Kontengruppen, 2, TRUE) -> Einbauten in Außenanlagen- | E38: 83500.01 | F38: 0 | G38: 0 | H38: 83500.01 | I38: 13331.94 | J38: 70168.08
A40: 8 | B40: 630 | C40: 25.03.2014 | D40: Kalletal e.G. | E40: 65.000,01 | F40: 325,01 | G40: 0,00 | H40: 64.675,01 | I40: 10.326,27 | J40: 54.348,75 | K40: B | L40: 1
A41: 8 | C41: 29.03.2014 | D41: Verwendung 2011
A42: KG | B42: =B40 -> 630 | C42: 1 Buchungen | D42: =VLOOKUP(B42, Kontengruppen, 2, TRUE) -> Ausstattung und Kunstwerke- | E42: 65000.01 | F42: 325.01 | G42: 0 | H42: 64675.01 | I42: 10326.27 | J42: 54348.75
A44: 13 | B44: 930 | C44: 20.03.2016 | D44: Hindemit | E44: 2.500,03 | F44: 25,03 | G44: 0,03 | H44: 2.475,03 | I44: 395,20 | J44: 2.079,86 | K44: E | L44: 1
A45: 13 | C45: 21.03.2013 | D45: Verwendung 2021
A46: KG | B46: =B44 -> 930 | C46: 1 Buchungen | D46: =VLOOKUP(B46, Kontengruppen, 2, TRUE) -> Finanzierungsnebenkosten | E46: 2500.03 | F46: 25.03 | G46: 0.03 | H46: 2475.03 | I46: 395.2 | J46: 2079.86
A48: 9 | B48: 690 | C48: 20.03.2015 | D48: Hindemit | E48: 2.500,02 | F48: 25,02 | G48: 0,02 | H48: 2.475,02 | I48: 395,19 | J48: 2.079,85 | K48: E | L48: 2
A49: 9 | C49: 21.03.2013 | D49: Verwendung 2013
A50: KG | B50: =B48 -> 690 | C50: 1 Buchungen | D50: =VLOOKUP(B50, Kontengruppen, 2, TRUE) -> Ausstattung und Kunstwerke- | E50: 2500.02 | F50: 25.02 | G50: 0.02 | H50: 2475.02 | I50: 395.19 | J50: 2079.85
A52: 10 | B52: 750 | C52: 21.03.2013 | D52: Hohnrath | E52: 100.000,02 | F52: 1.000,02 | G52: 5.950,02 | H52: 93.050,02 | I52: 14.856,74 | J52: 78.193,30 | K52: B | L52: 2
A53: 10 | C53: 21.03.2013 | D53: Verwendung 2015
A54: KG | B54: =B52 -> 750 | C54: 1 Buchungen | D54: =VLOOKUP(B54, Kontengruppen, 2, TRUE) -> Kunst | E54: 100000.02 | F54: 1000.02 | G54: 5950.02 | H54: 93050.02 | I54: 14856.74 | J54: 78193.3
A56: 11 | B56: 810 | C56: 22.03.2015 | D56: Mahrens | E56: 83.500,02 | F56: 0,00 | G56: 0,00 | H56: 83.500,02 | I56: 13.331,95 | J56: 70.168,09 | K56: B | L56: 2
A57: 11 | C57: 23.04.2015 | D57: Verwendung 2017
A58: KG | B58: =B56 -> 810 | C58: 1 Buchungen | D58: =VLOOKUP(B58, Kontengruppen, 2, TRUE) -> Maschinen Innenwirtschaft | E58: 83500.02 | F58: 0 | G58: 0 | H58: 83500.02 | I58: 13331.95 | J58: 70168.09
A60: 12 | B60: 870 | C60: 25.03.2015 | D60: Kalletal e.G. | E60: 65.000,02 | F60: 325,02 | G60: 0,00 | H60: 64.675,02 | I60: 10.326,28 | J60: 54.348,76 | K60: B | L60: 2
A61: 12 | C61: 29.03.2015 | D61: Verwendung 2019
A62: KG | B62: =B60 -> 870 | C62: 1 Buchungen | D62: =VLOOKUP(B62, Kontengruppen, 2, TRUE) -> Finanzierungsnebenkosten | E62: 65000.02 | F62: 325.02 | G62: 0 | H62: 64675.02 | I62: 10326.28 | J62: 54348.76
A64: 15 | B64: 850 | C64: 22.03.2016 | D64: Mahrens | E64: 83.500,03 | F64: 0,00 | G64: 0,00 | H64: 83.500,03 | I64: 13.331,96 | J64: 70.168,10 | K64: B | L64: 3
A65: 15 | C65: 23.04.2016 | D65: Verwendung 2025
A66: KG | B66: =B64 -> 850 | C66: 1 Buchungen | D66: =VLOOKUP(B66, Kontengruppen, 2, TRUE) -> Finanzierungsnebenkosten | E66: 83500.03 | F66: 0 | G66: 0 | H66: 83500.03 | I66: 13331.96 | J66: 70168.1
A68: 14 | B68: 990 | C68: 21.03.2013 | D68: Hohnrath | E68: 100.000,03 | F68: 1.000,03 | G68: 5.950,03 | H68: 93.050,03 | I68: 14.856,75 | J68: 78.193,31 | K68: B | L68: 3
A69: 14 | C69: 21.03.2013 | D69: Verwendung 2023
A70: KG | B70: =B68 -> 990 | C70: 1 Buchungen | D70: =VLOOKUP(B70, Kontengruppen, 2, TRUE) -> Sonstige Kosten | E70: 100000.03 | F70: 1000.03 | G70: 5950.03 | H70: 93050.03 | I70: 14856.75 | J70: 78193.31
A72: GESAMT | D72: 17 Buchungen | E72: 1120555.21 | F72: 5075.15 | G72: 23800.12 | H72: 1091680.21 | I72: 174302.05 | J72: 917378.37
A74: Förderzweck S | D74: Steigerung Wettbewerbsfähigkeit | E74: 0 | F74: 0 | G74: 0 | H74: 0 | I74: 0 | J74: 0
A75: Förderzweck B | D75: Besond. Anford. Tierhaltung | E75: 1110555.15 | F75: 4975.09 | G75: 23800.06 | H75: 1081780.15 | I75: 172721.31 | J75: 909058.99
A76: Förderzweck E | D76: Erschließungskosten | E76: 10000.06 | F76: 100.06 | G76: 0.06 | H76: 9900.06 | I76: 1580.74 | J76: 8319.38
A77: Förderzweck N | D77: Nicht förderfähige Positionen | E77: 0 | F77: 0 | G77: 0 | H77: 0 | I77: 0 | J77: 0

Sheet Tab4
A1: lfd.Nr | B1: Beleg | C1: Datum | D1: Art | E1: Betrag | F1: Art der Mittel | G1: Ausz-Nr
A2: 3 | B2: 3 | C2: 21.02.13 | D2: 1 | E2: 50000 | F2: Eigene Mittel | G2: 1
A3: 1 | B3: 2 | C3: 21.10.12 | D3: 11 | E3: 150000 | F3: Kontokorrent | G3: 1
A4: 2 | B4: 3 | C4: 21.02.13 | D4: 11 | E4: 200000 | F4: Kontokorrent | G4: 1

Sheet Tab5
A3: Betrieb: | C3: =" "&'Tab1'!D10&" in "&'Tab1'!D11 -> von Grünberg in Halahli
A4: ="Betr.-Nr: " &'Tab1'!D12 -> Betr.-Nr: 22233345
B5: 99
A6: Buchung | B6: Beleg | C6: Datum | D6: Art | E6: Betrag | F6: Art der Finanzierungsmittel | G6: Nr. Auzsahlungsantrag
C7: des
C8: Zugangs | D8: Code | E8: Euro
A9: 1 | B9: 2 | C9: 3 | D9: 4 | E9: 5 | F9: 6 | G9: 7
A10: 3 | B10: 3 | C10: 21.02.13 | D10: 1 | E10: 50000 | F10: Eigene Mittel | G10: 1
C11: Belege: 1 | D11: =D10 -> 1 | E11: 50000 | F11: =VLOOKUP(D11, Finanzierungsmittel, 2, TRUE) -> Eigene Mittel
A12: 1 | B12: 2 | C12: 21.10.12 | D12: 11 | E12: 150000 | F12: Kontokorrent | G12: 1
A13: 2 | B13: 3 | C13: 21.02.13 | D13: 11 | E13: 200000 | F13: Kontokorrent | G13: 1
C14: Belege: 2 | D14: =D13 -> 11 | E14: 350000 | F14: =VLOOKUP(D14, Finanzierungsmittel, 2, TRUE) -> Kontokorrent
C15: FINANZIERUNGSMITTEL | E15: 400000 | F15: 3 Belege

Sheet Tab6
A1: Ausgaben | C1: alle Angaben in | E1: =IF('Tab1'!D16=1,"DM","Euro") -> DM | I1: Bewilligter Kostenplan
A2: Num | B2: Art | C2: Zahlungs-betrag Ges.Betrag | D2: nicht realis. Skonti | E2: nicht ff.Betrag incl anteilige MWSt | F2: ff Brutto-betrag | G2: MWst auf ff.Bruttobetrag | H2: NettoBetrag = zuw-fäh. Ausgaben | I2: Betrag | J2: nff u. MWSt | K2: ffBetrag
A3: 1 | B3: Landkauf, Grundstück | C3: 0 | D3: 0 | E3: 0 | F3: 0 | G3: 0 | H3: 0 | I3: 50000 | J3: 7983.19 | K3: 42016.81
A4: 2 | B4: Erschließung | C4: 2500 | D4: 25 | E4: 0 | F4: 2475 | G4: 395.17 | H4: 2079.83 | I4: 50000 | J4: 7983.19 | K4: 42016.81
A5: 3 | B5: Bauwerk / Konstruktion | C5: 239055 | D5: 1000 | E5: 5950 | F5: 232105 | G5: 37058.78 | H5: 195046.22 | I5: 240000 | J5: 38319.33 | K5: 201680.67
A6: 4 | B6: Bauwerk / Techn. Anlagen | C6: 193500.01 | D6: 350.01 | E6: 0.01 | F6: 193150.01 | G6: 30839.09 | H6: 162310.93 | I6: 200000 | J6: 31932.77 | K6: 168067.23
A7: 5 | B7: Außenanlagen | C7: 183500.02 | D7: 1000.01 | E7: 5950.01 | F7: 176550.02 | G7: 28188.67 | H7: 148361.37 | I7: 10000 | J7: 1596.64 | K7: 8403.36
A8: 6 | B8: Ausstattung | C8: 67500.03 | D8: 350.03 | E8: 0.02 | F8: 67150.03 | G8: 10721.46 | H8: 56428.6 | I8: 0 | J8: 0 | K8: 0
A9: 7 | B9: Nebenkosten | C9: 100000.02 | D9: 1000.02 | E9: 5950.02 | F9: 93050.02 | G9: 14856.74 | H9: 78193.3 | I9: 50000 | J9: 7983.19 | K9: 42016.81
A10: 8 | B10: Maschinen / Innenwirtschaft | C10: 83500.02 | D10: 0 | E10: 0 | F10: 83500.02 | G10: 13331.95 | H10: 70168.09 | I10: 40000 | J10: 6386.55 | K10: 33613.45
A11: 9 | B11: Maschinen / Außenwirtschaft | C11: 0 | D11: 0 | E11: 0 | F11: 0 | G11: 0 | H11: 0 | I11: 0 | J11: 0 | K11: 0
A12: 10 | B12: Viehzukauf | C12: 0 | D12: 0 | E12: 0 | F12: 0 | G12: 0 | H12: 0 | I12: 0 | J12: 0 | K12: 0
A13: 11 | B13: Ablösung Verbindlichkeiten | C13: 0 | D13: 0 | E13: 0 | F13: 0 | G13: 0 | H13: 0 | I13: 0 | J13: 0 | K13: 0
A14: 12 | B14: Finanzierungsnebenkosten | C14: 83500.03 | D14: 0 | E14: 0 | F14: 83500.03 | G14: 13331.96 | H14: 70168.1 | I14: 0 | J14: 0 | K14: 0
A15: 13 | B15: Sonstige Kosten | C15: 167500.08 | D15: 1350.08 | E15: 5950.06 | F15: 160200.08 | G15: 25578.23 | H15: 134621.93 | I15: 20000 | J15: 3193.28 | K15: 16806.72
B16: GESAMTKOSTEN | C16: =SUM(C3:C15) -> 1120555.21 | D16: 5075.15 | E16: 23800.12 | F16: 1091680.21 | G16: 174302.05 | H16: =SUM(H3:H15) -> 917378.37 | I16: =SUM(I3:I15) -> 660000 | J16: =SUM(J3:J15) -> 105378.14 | K16: 554621.86
A19: Einnahmen | E19: Betriebsangaben
A20: Num | B20: Art | C20: Betrag | E20: BetriebsNr | F20: 22233345
A21: 1 | B21: Eigene Mittel | C21: 50000 | E21: Name | F21: von Grünberg
A22: 2 | B22: MWSt-Erstattung | C22: 0 | E22: Vorname | F22: Felix
A23: 3 | B23: Erlös Immob-Verkauf | C23: 0 | E23: Anschrift | F23: Hochsitz 4
A24: 4 | B24: Zuschuss and. Förd.-Prog | C24: 0 | E24: PLZ | F24: 52222
A25: 5 | B25: Zuschuss | C25: 0 | E25: Ort | F25: Halahli
A26: 6 | B26: Zinszuschuss (alt) | C26: 0 | E26: Bank
A27: 7 | B27: Z.Erfüllung bes. Anford. | C27: 0 | E27: BLZ
A28: 8 | B28: Erschließungszuschuss | C28: 0 | E28: Konto
A29: 9 | B29: Junglandwirtezuschuss | C29: 0
A30: 10 | B30: Darlehen | C30: 0 | F30: TRUE
A31: 11 | B31: Kontokorrent | C31: 350000
A32: 12 | B32: sonst. Kredit | C32: 0 | F32: 36526
B33: GESAMTEINNAHMEN | C33: =SUM(C21:C32) -> 400000
D38: 1 | E38: =VLOOKUP(D38,_Num2,2,TRUE) -> Landkauf, Grundstück
B40: Kreisstellen | D40: Daten aus ZuBe
A41: 1 | B41: Aachen | D41: Eigene Mittel | E41: 150000
A42: 2 | B42: Düren | D42: MWSt-Erstattung | E42: 0
A43: 3 | B43: Erftkreis | D43: Erlös Immob-Verkauf | E43: 0
A44: 4 | B44: Euskirchen | D44: Zuschuss and. Förd.-Prog | E44: 0
A45: 5 | B45: Heinsberg | E45: 0
A46: 6 | B46: Kleve | D46: Zuschuss | E46: 65000
A47: 7 | B47: Mettmann | D47: Zinszuschuss | E47: 0
A48: 8 | B48: Neuss | D48: Zus. bes. Anford. | E48: 25200
A49: 9 | B49: Oberberg. Kreis | D49: Erschließungzuschuss | E49: 36000
A50: 10 | B50: Rhein.-Berg. Kreis | D50: Junglandwirtezuschuss | E50: 10000
A51: 11 | B51: Rhein-Sieg-Kreis | E51: 0
A52: 12 | B52: Viersen | D52: KM- Darlehen | E52: 150000
A53: 13 | B53: Wesel | D53: GESAMTSUMME | E53: =SUM(E41:E52) -> 436200
A54: IST: | B54: =VLOOKUP(C54,Kreisstellen,2,1) -> Siegen-Wittgenstein | C54: 26 | D54: NRW
A55: ERGZ | B55: Agrarinvestitionsprog | C55: TRUE
B56: UmweltInvestProg | C56: 0
B57: Schluss-VN | C57: 0
B58: Belege bei | C58: landwirt
B59: Datum Bescheid | C59: 415.02.2013
B60: AZ des Bescheides | C60: AFP-zuz12323
B61: abgeschlossen | C61: 0 | D61: 2000-01-01
B62: vorz. Beginn | C62: 2013-01-15
A64: Auszahlungsantrag | C64: bewilligt | D64: gezahlt | E64: beantragt | F64: Diff
B65: Zuschuss | C65: =E46 -> 65000 | D65: 0 | E65: 0 | F65: =C65-D65-E65 -> 65000
B66: Zinszuschuss | C66: =E47 -> 0 | D66: 0 | E66: 0 | F66: 0
B67: Zus. Bes. Anford. | C67: =E48 -> 25200 | D67: 0 | E67: 0 | F67: 25200
B68: Erschließungszuschuss | C68: =E49 -> 36000 | D68: 0 | E68: 0 | F68: 36000
B69: Junglandwirtezuschuss | C69: =E50 -> 10000 | D69: 0 | E69: 0 | F69: 10000
B70: unbenannt | C70: 0 | D70: 0 | E70: 0 | F70: 0
B71: Summe | C71: =SUM(C65:C70) -> 136200 | D71: =SUM(D65:D70) -> 0 | E71: =SUM(E65:E70) -> 0 | F71: =C71-E71 -> 136200
A73: Vorher beantragt | C73: bewilligt | D73: gezahlt | E73: beantragt | F73: Diff
B74: Zuschuss | E74: 0
B75: Zinszuschuss | E75: 0
B76: Zus. Bes. Anford. | E76: 0
B77: Erschließungszuschuss | E77: 0
B78: Junglandwirtezuschuss | E78: 0
B79: unbenannt | E79: 0
B80: Summe | E80: =SUM(E74:E79) -> 0
A82: Aufgerechneter Aufwand aus vorhandenen Belegen:
C83: brutto | D83: MWSt | E83: Netto
B84: Wettbewerbsfähigkeit | C84: 0 | D84: 0 | E84: 0 | F84: 0
B85: Besondere Anforderungen | C85: 23800.06 | D85: 1254501.46 | E85: 909058.99 | F85: 0
B86: Erschließungskosten | C86: 0.06 | D86: 11480.8 | E86: 8319.38 | F86: 0
B87: nicht förderfähige Kosten | C87: 0 | D87: 0 | E87: 0
A91: Ausgaben aktueller Auszahlungsantrag | E91: alle Angaben in EURO
A92: Num | B92: Art | C92: Ges.Betrag | D92: nicht-ff.B. | E92: ff.Betrag | F92: MWSt | G92: nichtff.Betrag | H92: NettoBetrag
A93: 1 | B93: Landkauf, Grundstück | C93: 0 | D93: 0 | E93: 0 | F93: 0 | G93: 0 | H93: 0
A94: 2 | B94: Erschließung | C94: 2500 | D94: 25 | E94: 0 | F94: 2475 | G94: 395.17 | H94: 2079.83
A95: 3 | B95: Bauwerk / Konstruktion | C95: 239055 | D95: 1000 | E95: 5950 | F95: 232105 | G95: 37058.78 | H95: 195046.22
A96: 4 | B96: Bauwerk / Techn. Anlagen | C96: 193500.01 | D96: 350.01 | E96: 0.01 | F96: 193150.01 | G96: 30839.09 | H96: 162310.93
A97: 5 | B97: Außenanlagen | C97: 183500.02 | D97: 1000.01 | E97: 5950.01 | F97: 176550.02 | G97: 28188.67 | H97: 148361.37
A98: 6 | B98: Ausstattung | C98: 65000.01 | D98: 325.01 | E98: 0 | F98: 64675.01 | G98: 10326.27 | H98: 54348.75
A99: 7 | B99: Nebenkosten | C99: 0 | D99: 0 | E99: 0 | F99: 0 | G99: 0 | H99: 0
A100: 8 | B100: Maschinen / Innenwirtschaft | C100: 0 | D100: 0 | E100: 0 | F100: 0 | G100: 0 | H100: 0
A101: 9 | B101: Maschinen / Außenwirtschaft | C101: 0 | D101: 0 | E101: 0 | F101: 0 | G101: 0 | H101: 0
A102: 10 | B102: Viehzukauf | C102: 0 | D102: 0 | E102: 0 | F102: 0 | G102: 0 | H102: 0
A103: 11 | B103: Ablösung Verbindlichkeiten | C103: 0 | D103: 0 | E103: 0 | F103: 0 | G103: 0 | H103: 0
A104: 12 | B104: Finanzierungsnebenkosten | C104: 0 | D104: 0 | E104: 0 | F104: 0 | G104: 0 | H104: 0
A105: 13 | B105: Sonstige Kosten | C105: 2500.03 | D105: 25.03 | E105: 0.03 | F105: 2475.03 | G105: 395.2 | H105: 2079.86
B106: GESAMTKOSTEN | C106: =SUM(C93:C105) -> 686055.07 | D106: 2725.06 | E106: 11900.05 | F106: 671430.07 | G106: 107203.18 | H106: 564226.96

Sheet Tab7
B1: letzter Auszahlungsantrag: | D1: 3 | E1: von Grünberg, Halahli, Nr. 22233345
B2: lfd. Nr. des | C2: Gesamtbetrag | D2: davon für | F2: davon anerkannt
B3: Ausz-Antrags | C3: netto förderfähig | D3: Förderzweck | E3: Teilbetrag
B4: 1 | C4: 564226.96
D5: Wettbewerbskraft | E5: 0
D6: Besondere Anf. Tierprod | E6: 557987.43
D7: Erschließung | E7: 6239.53
D8: Nicht förderfähig | E8: 0
B9: 2 | C9: 204790
D10: Wettbewerbskraft | E10: 0
D11: Besondere Anf. Tierprod | E11: 202710.15
D12: Erschließung | E12: 2079.85
D13: Nicht förderfähig | E13: 0
B14: 3 | C14: 148361.41
D15: Wettbewerbskraft | E15: 0
D16: Besondere Anf. Tierprod | E16: 148361.41
D17: Erschließung | E17: 0
D18: Nicht förderfähig | E18: 0

Sheet VNS1
B3: für eine Fördermaßnahme nach den Richlinien
B4: Richtlinien über die Gewährung von Zuwendungen für Investitionen in landwirtschaftlichen Betrieben im Rahmen des Agrarinvestitionsförderungsprogramm / AFP
I5: 2013-03-20
H11: Eingangsstempel
B12: An den
B13: Direktor der Landwirtschaftskammer NRW
B14: als Landesbeauftragter
B15: über den Geschäftsführer der Kreisstelle
B16: ='Tab1'!E40& ", "&'Tab1'!F40 -> Euskirchen, VE Düren
A18: 1. Zuwendungsempfänger
B19: Name, Vorname | I19: Unternehmer-Nr.
C20: von Grünberg Felix | I20: 22233345
B21: Straße, PLZ, Ort
C22: Hochsitz 4, 52222 Halahli
B27: ggf. Datum der Bewilligung des vorzeitigen Baubeginns | G27: 2013-01-15
B28: Durch den Zuwendungsbescheid des Direktors der Landwirtschaftskammer NRW
B29: als Landesbeauftragter zur Finanzierung bewilligt :
C32: Bescheid vom | D32: AZ: | E32: Zuschuss | F32: Zinszuschuss | G32: Zuschuss bes. Anford. | H32: Zuschuss zur Erschließung | I32: Junglandwirte- Zuschuss | J32: Summe
C33: 415.02.2013 | D33: AFP-zuz12323 | E33: 65000 | F33: 0 | G33: 25200 | H33: 36000 | I33: 10000 | J33: =SUM(E33:I33) -> 136200
A36: 2. Sachbericht
B37: (kurze Darstellung der durchgeführten Maßnahme, u. a. Beginn, Abschluß, Abweichungen u. s. w., wenn erforderlich, gesondertes Blatt beifügen.)
B38: 516516
B53: Die Maßnahme ist abgeschlossen: | F53: Nein

Sheet VNS2
B1: 3. Zahlenmäßiger Nachweis der Finanzierungsmittel
B2: 0 | C2: alle Angaben in Euro
C3: Einnahmen | E3: laut Zuwendungsbescheid | G3: laut Abrechnung
C4: 1.1 | D4: Eigenleistung | E4: =SUM(E5:E8) -> 150000 | G4: =SUM(G5:G8) -> 50000
C5: 1.1.1 | D5: bare Mittel | E5: 150000 | G5: 50000
C6: 1.1.2 | D6: MWSt-Erstattung | E6: 0 | G6: 0
C7: 1.1.3. | D7: Erlös Immobilien | E7: 0 | G7: 0
C8: 1.1.4. | D8: Zuschuss anderer Förderprog. | E8: 0 | G8: 0
C9: 1.2 | D9: Zuschüsse | E9: =SUM(E10:E14) -> 136200 | G9: =SUM(G10:G14) -> 0
C10: 1.2.1 | D10: Zuschuss | E10: 65000 | G10: 0
C11: 1.2.2 | D11: Zinszuschuss (alt) | E11: 0 | G11: 0
C12: 1.2.3 | D12: Zus. z. Erfüllung bes. Anford. | E12: 25200 | G12: 0
C13: 1.2.4 | D13: Zuschuss zur Erschließung | E13: 36000 | G13: 0
C14: 1.2.5 | D14: Junglandwirtezuschuss | E14: 10000 | G14: 0
C15: 1.3 | D15: Fremdkapital | E15: =E16 -> 150000 | G15: =G16 -> 350000
C16: 1.3.1 | D16: KM- Darlehen | E16: 150000 | G16: 350000
D17: Summe | E17: =SUM(E16,E10:E14,E5:E8) -> 436200 | G17: =SUM(G16,G10:G14,G5:G8) -> 400000
B19: 4. Bestätigungen des/der Antragsteller/in
C20: Es wird bestätigt, dass
C21: - die allgemeinen und besonderen Nebenbestimmungen des Zuwendungsbescheides beachtet wurden
C22: - die Ausgaben notwendig waren, wirtschaftlich und sparsam verfahren wurde und die Angaben
C23: im Verwendungsnachweis mit den Belegen übereinstimmen.
C24: - die Origianalbelege zu den geltend gemachten Ausgaben vollständig beigefügt sind.
C28: Die Belegsammlung wird nach Rückgabe aufbewahrt bei: | F28: landwirt
C30: Die Gebühren für die Architektenleistungen, statischen Berechnungen und sonstigen Ingenieur-
C31: leistungen sind nach dem Beiblatt (siehe Anlage B) berechnet. Die Berechnung für Architekten-
C32: und Ingenieurgebühren anderer Stellen sind ebenfalls aufgeführt. Die Belege werden auf einer
C33: Belegliste (Anlage 1) zusammengefasst.
C36: Ort, Datum | E36: Unterschrift/en
B41: 5. Bestätigung des Betreuers
C43: Das Vorhaben ist unter meiner Mitwirkung durchgeführt worden. Ich bestätige den vorstehenden
C44: Verwendungsnachweis und die Erklärungen des Zuwendungsempfängers.
C47: Ort, Datum | E47: Unterschrift

Sheet VNS3
B1: 6. Prüfungsvermerk des Geschäftsführers der Kreisstelle
B5: Der Verwendungsnachweis wurde geprüft
C7: nach Aktenlage
C9: nach Aktenlage und örtlicher Besichtigung
C11: Der Verwendungsnachweis entspricht den im Zuwendungsbescheid einschl. der Nebenbestim-
C12: mungen festgelegten Anforderungen. Die Zuwendung ist zweckentsprechend verwendet
C13: worden.
C15: Der Verwendungsnachweis ist vollständig (einschl. Sachbericht, Originalrechnungen,
C16: Zahlungsbeweisen und Auftragsunterlagen)
C18: Die Prüfung ergab keine Beanstandungen. Die Angaben des Zuwendungsempfängers
C19: werden bestätigt. Entgegenstehende Tatsachen sind nicht bekannt.
C20: Die Prüfung ergab keinen Hinweis auf die Nichteinhaltung von Verpflichtungen
C21: und Antragsvoraussetzungen, insbesondere Verstöße gegen Umwelt- und Vergabebedingungen
C22: Die Prüfung ergab folgende Beanstandungen: (Korrekturen zu einzelnen Belegen sind in der
C23: Bearbeitungsspalte ausgewiesen).
C31: Der Auszahlungsbetrag muss aufgrund der Beanstandungen gekürzt werden.
C34: Ort, Datum | G34: Name und Unterschrift des Geschäftsführers der Kreisstelle
G35: der Landwirtschaftskammer oder seines Beauftragten

Sheet VNS4
A1: Zusammenstellung der Gesamtkosten der Maßnahme | I1: Anlage A
A2: 2. Ausgabengliederung
A3: Ausgabenbereich | B3: 2.1 laut Investitionskonzept | E3: 2.2 Tatsächlich entstandene Ausgaben
B4: Investitionsbetrag | C4: MwSt. und nicht | D4: förderfähiger | E4: Investitionsbetrag | F4: MWSt. und nicht | G4: förderfähiger | H4: NK | I4: geprüft und
B5: (Brutto einschl. Ei- | C5: förderfähige Kosten | D5: Betrag | E5: (Brutto einschl. Ei- | F5: förderfähige Kosten | G5: Betrag | H5: % | I5: anerkannt
B6: genleistung) | E6: genleistung)
A7: 1 | B7: 2 | C7: 3 | D7: 4 | E7: 5 | F7: 6 | G7: 7 | I7: 8
A8: Landkauf, Grundstück | B8: 50000 | C8: 7983.19 | D8: 42016.81 | E8: 0 | F8: 0 | G8: 0
A9: Erschließung | B9: 50000 | C9: 7983.19 | D9: 42016.81 | E9: 2500 | F9: 420.17 | G9: 2079.83
A10: Bauwerk / Konstruktion | B10: 240000 | C10: 38319.33 | D10: 201680.67 | E10: 239055 | F10: 44008.78 | G10: 195046.22
A11: Bauwerk / Techn. Anlagen | B11: 200000 | C11: 31932.77 | D11: 168067.23 | E11: 193500.01 | F11: 31189.11 | G11: 162310.93
A12: Aussenanlagen | B12: 10000 | C12: 1596.64 | D12: 8403.36 | E12: 183500.02 | F12: 35138.69 | G12: 148361.37
A13: Ausstattung | B13: 0 | C13: 0 | D13: 0 | E13: 67500.03 | F13: 11071.51 | G13: 56428.6
A14: Nebenkosten | B14: 50000 | C14: 7983.19 | D14: 42016.81 | E14: 100000.02 | F14: 21806.78 | G14: 78193.3 | H14: =G14/(G19-G14)% -> 12.32564807
A15: Maschinen / Innenwirtschaft | B15: 40000 | C15: 6386.55 | D15: 33613.45 | E15: 83500.02 | F15: 13331.95 | G15: 70168.09
A16: Maschinen / Aussenwirtschaft | B16: 0 | C16: 0 | D16: 0 | E16: 0 | F16: 0 | G16: 0
A17: Viehzukauf | B17: 0 | C17: 0 | D17: 0 | E17: 0 | F17: 0 | G17: 0
A19: Investition gesamt | B19: =SUM(B8:B18) -> 640000 | C19: 102184.86 | D19: 537815.14 | E19: 869555.1 | F19: 156966.99 | G19: =SUM(G8:G18) -> 712588.34
A20: Ablösung von Verbindlichkeiten | B20: 0 | C20: 0 | D20: 0 | E20: 0 | F20: 0 | G20: 0
A21: Finanzierungsnebenkosten | B21: 0 | C21: 0 | D21: 0 | E21: 83500.03 | F21: 13331.96 | G21: 70168.1
A22: Sonst. Kosten | B22: 20000 | C22: 3193.28 | D22: 16806.72 | E22: 167500.08 | F22: 32878.37 | G22: 134621.93
A23: Finanzierungsbedarf | B23: =SUM(B19:B22) -> 660000 | C23: 105378.14 | D23: 554621.86 | E23: 1120555.21 | F23: 203177.32 | G23: 917378.37
A24: Mehr-/Minderkosten | E24: =E23-B23 -> 460555.21 | F24: =F23-C23 -> 97799.18 | G24: =G23-D23 -> 362756.51
G28: =E23-F23 -> 917377.89
G29: =G28-G23 -> -0.4799999996
E38: 0 | F38: 0 | G38: 0
E39: 2500 | F39: 2895.17 | G39: 2079.83
E40: 239055 | F40: 270163.78 | G40: 195046.22
E41: 193500.01 | F41: 224339.11 | G41: 162310.93
E42: 183500.02 | F42: 205738.7 | G42: 148361.37
E43: 65000.01 | F43: 75326.29 | G43: 54348.75
E44: 0 | F44: 0 | G44: 0
E45: 0 | F45: 0 | G45: 0
E46: 0 | F46: 0 | G46: 0
E47: 0 | F47: 0 | G47: 0
E50: 0 | F50: 0 | G50: 0
E51: 0 | F51: 0 | G51: 0
E52: 2500.03 | F52: 2895.26 | G52: 2079.86

Sheet AusAn
B2: Antragsteller/in; Absender:
C3: ='Tab6'!F22&" "&'Tab6'!F21 -> Felix von Grünberg
C4: ='Tab6'!F23 -> Hochsitz 4
C5: ='Tab6'!F24&" "&'Tab6'!F25 -> 52222 Halahli
B8: ="An den Direktor der Landwirtschaftskammer " & 'Tab6'!D54 -> An den Direktor der Landwirtschaftskammer NRW
B9: als Landesbeauftragter
B10: ="Referat 11A" -> Referat 11A
B11: Siebengebirgsstr. 200 | H11: Eingangsstempel
B12: 53229 BONN
B14: über die Kreisstelle | D14: ='Tab1'!E40&", "&'Tab1'!F40 -> Euskirchen, VE Düren
B16: Gewährung von Zuwendungen nach dem Agrarinvestitionsförderungsprogramm (AFP)
B17: Antrag auf Auszahlung der Zuschüsse | F17: - Auszahlung Nr. | H17: ='Tab1'!C41 -> 1
B18: AZ: | D18: ='Tab6'!C60 -> AFP-zuz12323 | G18: vom | H18: ='VNS1'!I5 -> 2013-03-20
B20: Zwischen- / Verwendungsnachweis vom | G20: 2013-03-20
B22: Mit Bezug auf die im o. g. Zwischen-/ Verwendungsnachweis angegebenen Ausgaben beantrage ich
B23: hiermit folgende Auszahlung:
F24: alle Angaben in Euro | I24: bitte nicht ausfüllen
I25: Feststellung durch
G26: bereits aus- | H26: beantragte | I26: Sachbearbeiter/in
F27: bewilligt: | G27: gezahlt: | H27: Auszahlung: | I27: der Kreisstelle
B28: Zuschuss | F28: ='Tab6'!C65 -> 65000 | G28: ='Tab6'!C25 -> 0 | H28: 35000 | I28: =IF((H28+G28)>F28,"***","") -> 
B29: Zinszuschuss (aus Altbewilligungen) | F29: ='Tab6'!C66 -> 0 | G29: ='Tab6'!C24+'Tab6'!C26 -> 0 | H29: 0 | I29: =IF((H29+G29)>F29,"***","") -> 
B30: Zuschuss z. Erfüllung beson. Anforderungen | F30: ='Tab6'!C67 -> 25200 | G30: ='Tab6'!C27 -> 0 | H30: 0 | I30: =IF((H30+G30)>F30,"***","") -> 
B31: Erschliessungskostenzuschuss | F31: ='Tab6'!C68 -> 36000 | G31: ='Tab6'!C28 -> 0 | H31: 0 | I31: =IF((H31+G31)>F31,"***","") -> 
B32: Junglandwirtezuschuss | F32: ='Tab6'!C69 -> 10000 | G32: ='Tab6'!C29 -> 0 | H32: 0 | I32: =IF((H32+G32)>F32,"***","") -> 
B34: insgesamt: | F34: =SUM(F28:F33) -> 136200 | G34: =SUM(G28:G33) -> 0 | H34: =SUM(H28:H33) -> 35000
B35: Insgesamt sind bisher einschließlich heute vom bewilligten Betrag beantragt: | H35: =(H34+G34)/F34% -> 25.69750367 | I35: %
B36: Auszahlungen erfolgen auf das Geschäftskonto, das beim Direktor der Landwirtschaftskammer bekannt ist. Änderungen sind nur bei der Kreisstelle möglich. Sie gelten dann für alle folgenden Auszahlungsanträge aller Fördermaßnahmen.
D38: Felix von Grünberg | F38: Grundantrag-Jahr: | H38: ='Tab1'!C43 -> 2013
F39: Grundantrag-Nr: | H39: ='Tab1'!C42 -> 1
F40: Untern-Nr.: | H40: ='Tab1'!D12 -> 22233345
B44: Ich/Wir bestätige/n, dass die Angaben im Antrag und im Investitionskonzept noch zutreffen und damit die Voraussetzungen für die Gewährung der Förderung gemäß den geltenden Richtlinien weiterhin erfüllt sind.
B45: Im Verwendungsnachweis sind ausschließlich solche Ausgaben aufgeführt, die der Durchführung
B46: der in den Antragsunterlagen beschriebenen Maßnahmen zuzurechnen sind.
B47: Die mit dem Zuwendungsbescheid erlassenen Bestimmungen für die Auszahlung sind erfüllt.
B48: Ich versichere, dass in den letzten 5 Jahren gegen mich keine Geldbuße von wenigstens 2500 Euro nach § 404 Abs. 2 Nr. 3 des Dritten Buches Sozialgesetzbuch rechtskräftig verhängt wurde oder ich nach den §§ 10, 10a oder 11 des Schwarzarbeitsbekämpfungsgesetzes zu einer Freiheitsstrafe von mehr als drei Monaten oder einer Geldstrafe von mehr als 90 Tagessätzen rechtskräftig verurteilt wurde.
C53: Ort; Datum: | G53: Unterschrift des/r Antragstellers/in;
C54: ='Tab6'!$F$25&", den " -> Halahli, den
C57: Anlagen:
C60: nur von der Kreisstelle auszufüllen
C61: Der Auszahlungsantrag wurde geprüft und zur Erfassung und Weiterverarbeitung freigegeben. Die festgestellten Beträge
C62: werden zur Auszahlung freigegeben.
C66: Ort, Datum | F66: Unterschrift der Bearbeiterin/ des Bearbeiters

Sheet Updates
B1: Version | C1: Ausgabe | D1: Datum Freigabe | E1: Nr. | F1: Änderungen
B2: 4.0 | C2: F01 | D2: 2007-10-26 | E2: 1 | F2: Erste Freigabe
C3: F02 | D3: 2007-11-01 | E3: 2 | F3: Freigabe einiger geschützter Zellen, die zu Fehlern führten
E4: 3 | F4: Neuausrichtung der Identifikatoren im 1. Dialog
E5: 4 | F5: Korrektur der Weitergabe der Werte bis zur CSV-Datei
C6: F03 | D6: 2007-11-02 | E6: 5 | F6: Löschen der automatischen Übertragung der Nummer des Auszahlungsantrages; wegen der Bearbeitung eines geschützen Feldes durch ein Makro traten Fehler auf
E7: 6 | F7: Änderung der Aktivierungsreihenfolge in Dialog 4 entsprechend der Maske
E8: 7 | F8: Abschalten der Bildschirmaktualisierung bei Kosten- und Finanzmittelerfassung
C9: F04 | D9: 2007-11-06 | E9: 8 | F9: Herausnahme von überflüssigen "Löschen JA/NEIN" - Abfragen
E10: 9 | F10: Kommentar Plausibilitätsprüfung
E11: 10 | F11: Verbesserung SCREEN-Updating bei Dialogen im Hintergrund
D12: 2007-11-07 | E12: 11 | F12: Fehler Angabe Zwischenverwendungsnachweis statt Schlussnachweis wurde korrigiert
E13: 12 | F13: Begriff „DM“ auf Seite 2 gelöscht
E14: 13 | F14: Formeln für die Summen bei der Gebührenberechnungen unsichtbar gemacht
E15: 14 | F15: Bearbeitungsspalte bei Kostenbelegen so redigiert dass sie auf einer Seite mit den Daten steht
E16: 15 | F16: Fehler bei Drucken des Auszahlungsantrages (Fehlermeldung (Laufzeitfehler 1004)) beseitigt.
E17: 16 | F17: Das Feld zur Eingabe der Buchungsnummer erhält jetzt aber, wie vorgeschlagen, bei jeder neuen Buchung unmittelbar den Focus
C18: F05 | D18: 2007-11-08 | E18: 17 | F18: Fehler Belegerfassung neu: Zahlungsdatum ist in der Zukunft und damit ungültig
E19: 18 | F19: Fehler Belegerfassung neu: Zahlungsdatum liegt vor Rechnungsdatum - geht nicht
E20: 19 | F20: Die Finanzierungmittelmaske wird nach jedem Speichervorgang auf Null gesetzt, damit wird versehentliches Doppelspeichern von Buchungen verhindert.
D21: 2007-11-09 | E21: 20 | F21: Format der Datenauf Kostenzusammenstellung wie üblich TT.MM.JJJJ
E22: 21 | F22: Schreibfehler korrigiert im Dialog "Ergänzende Angaben"
E23: 22 | F23: Kostenstelle 1 bei Neuanlage eines Betriebes auf Null gesetzt
E24: 23 | F24: "Unternehmer-Nr." statt Asressnummer in Betriebsdialog
E25: 24 | F25: Datum in VNS5 entfernt
E26: 25 | F26: Das Feld zur Eingabe der Buchungsnummer erhält jetzt, wie vorgeschlagen, bei jeder neuen Buchung unmittelbar den Focus und wird insgesamt markiert
E27: 26 | F27: Ausdruckfunktion nichtmmehr Blattweise sondern geschlossen - VN und Auszahlungsantrag
E28: 27 | F28: Listenfunktion in der Kombobox "Art" der Finanzmittelerfassung überprüft und geändert
D29: 2007-11-12 | E29: 28 | F29: Zeilen- und Spaltenköpfe bei VNS4 entfernt
E30: 29 | F30: Kästchen EG-Nr. entfernt auf VNS1
E31: 30 | F31: Änderung des Prüfberichts der Kreisstelle
C32: F06::F08 | F32: Redaktionelle Änderungen
C34: F09 | D34: 2012-04-12 | F34: Bankverbindung entfernt aus Darstelung und Dialog
F35: Redaktionelle Änderungen
F36: Anpassung Referatsname
B38: 5.0 | C38: F01 | D38: 2013-03-01 | F38: Umfassende Überarbeitung des Erfassungsmenues für Belege über Ausgaben
E39: ad17 | F39: Fehler Belegerfassung neu: Zahlungsdatum in der Zukunft wieder gültig
E40: ad18 | F40: Fehler Belegerfassung neu: Zahlungsdatum vor Rechnungsdatum - geht wieder
F41: Änderung der Listbox-Steuerung für DIN-Gruppen
F42: Anpassung der Aktivierungsreihenfolge
F43: Entfernung Gebührenseite

Sheet transfer
A1: ='Tab1'!D12 -> 22233345 | C1: Adressnummer | D1: =IF(ISTEXT(A1),"o.k","Fehler ") -> o.k
A2: =AusAn!H17 -> 1 | C2: Nummer des Auszahlungsantrages | D2: =IF(ISNUMBER(A2),"o.k","Fehler ") -> o.k
A3: =AusAn!H39 -> 1 | C3: Nr. Grundantrag | D3: =IF(ISNUMBER(A3),"o.k","Fehler ") -> o.k
A4: =AusAn!H38 -> 2013 | C4: Jahr Grundantrag | D4: =IF(ISNUMBER(A4),"o.k","Fehler ") -> o.k
A5: =AusAn!C3 -> Felix von Grünberg | C5: Name Antrag | D5: =IF(ISTEXT(A5),"o.k","Fehler ") -> o.k
A6: =AusAn!C4 -> Hochsitz 4 | C6: Anschrift Antrag | D6: =IF(ISTEXT(A6),"o.k","Fehler ") -> o.k
A7: =AusAn!C5 -> 52222 Halahli | C7: PLZ und Ort Antrag | D7: =IF(ISTEXT(A7),"o.k","Fehler ") -> o.k
A8: =AusAn!D14 -> Euskirchen, VE Düren | C8: Kreisstelle | D8: =IF(ISTEXT(A8),"o.k","Fehler ") -> o.k
A9: =AusAn!D18 -> AFP-zuz12323 | C9: Aktenzeichen | D9: =IF(ISTEXT(A9),"o.k","Fehler ") -> o.k
A10: =AusAn!G20 -> 2013-03-20 | C10: Datum Verwendungsnachweis | D10: =IF(ISNUMBER(A10),"o.k","Fehler ") -> o.k
A11: =AusAn!H28 -> 35000 | C11: beantragte Zahlung von Zuschuss | D11: =IF(ISNUMBER(A11),"o.k","Fehler ") -> o.k
A12: =AusAn!H29 -> 0 | C12: beantragte Zahlung von Zinszuschuss | D12: =IF(ISNUMBER(A12),"o.k","Fehler ") -> o.k
A13: =AusAn!H30 -> 0 | C13: beantragte Zahlung von Z. beson.Anford. | D13: o.k
A14: =AusAn!H31 -> 0 | C14: beantragte Zahlung von Erschließungszuschuss | D14: o.k
A15: =AusAn!H32 -> 0 | C15: beantragte Zahlung von Junglandwirtezuschuss | D15: o.k
A16: =AusAn!H34 -> 35000 | C16: Gesamtsumme Auszahlung | D16: o.k
A17: =AusAn!I33 -> 0 | C17: festgestellte Zahlung von Zuschuss | D17: o.k
A18: =AusAn!I34 -> 0 | C18: festgestellte Zahlung von Zinszuschuss | D18: o.k
A19: =AusAn!I35 -> % | C19: festgestellte Zahlung von Z. beson.Anford. | D19: Fehler
A20: =AusAn!I36 -> 0 | C20: festgestellte Zahlung von Erschließungszuschuss | D20: o.k
A21: =AusAn!I37 -> 0 | C21: festgestellte Zahlung von Junglandwirtezuschuss | D21: o.k
A22: =AusAn!D38 -> Felix von Grünberg | C22: Kontoinhaber Antrag | D22: =IF(ISTEXT(A22),"o.k","Fehler ") -> o.k
A23: =AusAn!B38 -> 0 | C23: Kontonummer Antrag | D23: =IF(ISTEXT(A23),"o.k","Fehler ") -> Fehler
A24: =AusAn!D40 -> 0 | C24: BLZ Antrag | D24: =IF(ISTEXT(A24),"o.k","Fehler ") -> Fehler
A25: =AusAn!D41 -> 0 | C25: Geldinstitut Antrag | D25: =IF(ISTEXT(A25),"o.k","Fehler ") -> Fehler
A26: ='VNS4'!G8 -> 0 | C26: nachgew. Ausgaben Grundstück | D26: =IF(ISNUMBER(A26),"o.k","Fehler ") -> o.k
A27: ='VNS4'!G9 -> 2079.83 | C27: nachgew. Ausgaben Erschließung | D27: =IF(ISNUMBER(A27),"o.k","Fehler ") -> o.k
A28: ='VNS4'!G10 -> 195046.22 | C28: nachgew. Ausgaben Bauwerk | D28: o.k
A29: ='VNS4'!G11 -> 162310.93 | C29: nachgew. Ausgaben Techn.Anlagen | D29: o.k
A30: ='VNS4'!G12 -> 148361.37 | C30: nachgew. Ausgaben Aussenanlagen | D30: o.k
A31: ='VNS4'!G13 -> 56428.6 | C31: nachgew. Ausgaben Ausstattung | D31: o.k
A32: ='VNS4'!G14 -> 78193.3 | C32: nachgew. Ausgaben Nebenkosten | D32: o.k
A33: ='VNS4'!G15 -> 70168.09 | C33: nachgew. Ausgaben Maschinen Innenwirtschaft | D33: o.k
A34: ='VNS4'!G16 -> 0 | C34: nachgew. Ausgaben Maschinen Außenwirtschaft | D34: o.k
A35: ='VNS4'!G18 -> 0 | C35: nachgew. Ausgaben unbestimmter Art | D35: o.k
A36: ='VNS4'!G19 -> 712588.34 | C36: nachgew. Ausgaben Investitionen | D36: o.k
A37: ='VNS4'!G22 -> 134621.93 | C37: sonstige nachgew. ff. Ausgaben | D37: o.k
A38: ='VNS4'!G23 -> 917378.37 | C38: nachgew. Ausgaben insgesamt | D38: o.k
A39: ='VNS4'!G24 -> 362756.51 | C39: Mehr oder Minderkosten | D39: o.k
A40: ='VNS4'!I8 -> 0 | C40: anerkannte Ausgaben Grundstück | D40: o.k
A41: ='VNS4'!I9 -> 0 | C41: anerkannte Ausgaben Erschließung | D41: o.k
A42: ='VNS4'!I10 -> 0 | C42: anerkannte Ausgaben Bauwerk | D42: o.k
A43: ='VNS4'!I11 -> 0 | C43: anerkannte Ausgaben Techn.Anlagen | D43: o.k
A44: ='VNS4'!I12 -> 0 | C44: anerkannte Ausgaben Aussenanlagen | D44: o.k
A45: ='VNS4'!I13 -> 0 | C45: anerkannte Ausgaben Ausstattung | D45: o.k
A46: ='VNS4'!I14 -> 0 | C46: anerkannte Ausgaben Nebenkosten | D46: o.k
A47: ='VNS4'!I15 -> 0 | C47: anerkannte Ausgaben Maschinen Innenwirtschaft | D47: o.k
A48: ='VNS4'!I16 -> 0 | C48: anerkannte Ausgaben Maschinen Außenwirtschaft | D48: o.k
A49: ='VNS4'!I18 -> 0 | C49: anerkannte Ausgaben unbestimmter Art | D49: o.k
A50: ='VNS4'!I19 -> 0 | C50: anerkannte Ausgaben Investitionen | D50: o.k
A51: ='VNS4'!I22 -> 0 | C51: sonstige anerkannte ff. Ausgaben | D51: o.k
A52: ='VNS4'!I23 -> 0 | C52: anerkannte Ausgaben insgesamt | D52: o.k
A53: 0 | C53: Ausgaben zur Steigerung der Wettbewerbskraft | D53: o.k
A54: 909058.99 | C54: Ausgaben für besondere Anforderungen | D54: o.k
A55: 8319.38 | C55: Ausgaben für Erschließung | D55: o.k
A56: 0 | C56: letzter Antrag Steigerung Wettbewerbsfähigkeit | D56: o.k
A57: 148361.41 | C57: letzter Antrag Besondere Anforderungen Tierh. | D57: o.k
A58: 0 | C58: letzter Antrag Erschließung | D58: o.k
A59: Robert Müller-List
A60: 2008-10-20T15:33:45

Sheet Tabelle1
B2: oben
B4: unten
B6: rechts
C7: 5 | D7: 10 | E7: =C7*D7 -> 50
B8: links
B10: ganz
B12: fett
B14: Haar
